fUST/lending_fUST_20260412
["ID","MTS","AMOUNT","RATE_DAILY","PERIOD"]
[420343937,1776005445836,-500.0,0.00016712,2]
[420343942,1776005445889,-659.32,0.00016712,2]
[420343943,1776005445911,-844.8,0.00016712,2]
[420343945,1776005445923,-500.0,0.00016712,2]
[420343947,1776005445937,-581.29,0.00016712,2]
[420343949,1776005445946,-500.0,0.00016712,2]
[420343951,1776005445961,-500.0,0.00016712,2]
[420343953,1776005445990,-500.0,0.00016712,2]
[420343955,1776005446000,-500.0,0.00016712,2]
[420343957,1776005446013,-624.4192331,0.00016712,2]
[420343960,1776005446026,-500.0,0.00016712,2]
[420343961,1776005446036,-500.0,0.00016712,2]
[420343963,1776005446048,-500.0,0.00016712,2]
[420343965,1776005446061,-500.0,0.00016712,2]
[420343967,1776005446072,-500.0,0.00016712,2]
[420343969,1776005446082,-500.0,0.00016712,2]
[420343971,1776005446091,-500.0,0.00016712,2]
[420343973,1776005446107,-500.0,0.00016712,2]
[420343975,1776005446121,-1138.86,0.00016712,2]
[420343977,1776005446135,-500.0,0.00016712,2]
[420343979,1776005446160,-500.0,0.00016712,2]
[420343982,1776005446179,-500.0,0.00016712,2]
[420343983,1776005446197,-554.94,0.00016712,2]
[420343985,1776005446224,-500.0,0.00016712,2]
[420343988,1776005446234,-419.44247561,0.00016712,2]
[420343990,1776005446257,-500.0,0.00016712,2]
[420343991,1776005446271,-500.0,0.00016712,2]
[420343994,1776005446285,-500.0,0.00016712,2]
[420343996,1776005446312,-500.0,0.00016712,2]
[420343998,1776005446338,-500.0,0.00016712,2]
[420344000,1776005446391,-500.0,0.00016712,2]
[420344002,1776005446402,-500.0,0.00016712,2]
[420344004,1776005446417,-500.0,0.00016712,2]
[420344006,1776005446439,-500.0,0.00016712,2]
[420344007,1776005446451,-500.0,0.00016712,2]
[420344009,1776005446464,-500.0,0.00016712,2]
[420344011,1776005446482,-1536.35,0.00016712,2]
[420344014,1776005446492,-500.0,0.00016712,2]
[420344016,1776005446502,-6102.16,0.00016712,2]
[420344017,1776005446522,-500.0,0.00016712,2]
[420344020,1776005446532,-500.0,0.00016712,2]
[420344022,1776005446542,-500.0,0.00016712,2]
[420344024,1776005446565,-500.0,0.00016712,2]
[420344026,1776005446575,-500.0,0.00016712,2]
[420344028,1776005446586,-500.0,0.00016712,2]
[420344030,1776005446608,-500.0,0.00016712,2]
[420344032,1776005446618,-500.0,0.00016712,2]
[420344034,1776005446627,-500.0,0.00016712,2]
[420344036,1776005446648,-556.87,0.00016712,2]
[420344038,1776005446658,-500.0,0.00016712,2]
[420344040,1776005446668,-500.0,0.00016712,2]
[420344042,1776005446678,-500.0,0.00016712,2]
[420344044,1776005446697,-500.0,0.00016712,2]
[420344046,1776005446713,-500.0,0.00016712,2]
[420344048,1776005446726,-500.0,0.00016712,2]
[420344050,1776005446751,-555.41,0.00016712,2]
[420344053,1776005446767,-500.0,0.00016712,2]
[420344055,1776005446779,-500.0,0.00016712,2]
[420344057,1776005446800,-500.0,0.00016712,2]
[420344059,1776005446815,-500.0,0.00016712,2]
[420344061,1776005446829,-5300.54,0.00016712,2]
[420344063,1776005446844,-500.0,0.00016712,2]
[420344065,1776005446870,-500.0,0.00016712,2]
[420344067,1776005446883,-500.0,0.00016712,2]
[420344069,1776005446896,-157.07218455,0.00016712,2]
[420344071,1776005446906,-500.0,0.00016712,2]
[420344072,1776005446920,-500.0,0.00016712,2]
[420344074,1776005446935,-500.0,0.00016712,2]
[420344076,1776005446945,-3628.56,0.00016712,2]
[420344078,1776005446961,-500.0,0.00016712,2]
[420344081,1776005446980,-500.0,0.00016712,2]
[420344083,1776005446990,-500.0,0.00016712,2]
[420344085,1776005447003,-500.0,0.00016712,2]
[420344087,1776005447014,-500.0,0.00016712,2]
[420344089,1776005447025,-500.0,0.00016712,2]
[420344091,1776005447034,-2841.01,0.00016712,2]
[420344093,1776005447044,-500.0,0.00016712,2]
[420344095,1776005447055,-500.0,0.00016712,2]
[420344097,1776005447067,-500.0,0.00016712,2]
[420344099,1776005447079,-500.0,0.00016712,2]
[420344101,1776005447090,-500.0,0.00016712,2]
[420344103,1776005447110,-500.0,0.00016712,2]
[420344105,1776005447121,-500.0,0.00016712,2]
[420344107,1776005447133,-500.0,0.00016712,2]
[420344109,1776005447143,-4228.53,0.00016712,2]
[420344111,1776005447155,-500.0,0.00016712,2]
[420344113,1776005447166,-7970.55,0.00016712,2]
[420344115,1776005447190,-6481.52,0.00016712,2]
[420344117,1776005447200,-7446.32,0.00016712,2]
[420344119,1776005447222,-500.0,0.00016712,2]
[420344121,1776005447232,-500.0,0.00016712,2]
[420344123,1776005447263,-500.0,0.00016712,2]
[420344125,1776005447282,-841.41,0.00016712,2]
[420344127,1776005447292,-500.0,0.00016712,2]
[420344129,1776005447302,-500.0,0.00016712,2]
[420344131,1776005447317,-500.0,0.00016712,2]
[420344133,1776005447328,-500.0,0.00016712,2]
[420344135,1776005447337,-500.0,0.00016712,2]
[420344137,1776005447351,-500.0,0.00016712,2]
[420344139,1776005447374,-500.0,0.00016712,2]
[420344141,1776005447383,-500.0,0.00016712,2]
[420344143,1776005447393,-500.0,0.00016712,2]
[420344145,1776005447401,-500.0,0.00016712,2]
[420344147,1776005447412,-5461.45,0.00016712,2]
[420344149,1776005447426,-500.0,0.00016712,2]
[420344151,1776005447436,-278.39625567,0.00016712,2]
[420344153,1776005447448,-500.0,0.00016712,2]
[420344155,1776005447479,-500.0,0.00016712,2]
[420344157,1776005447489,-5589.2,0.00016712,2]
[420344159,1776005447498,-500.0,0.00016712,2]
[420344161,1776005447517,-500.0,0.00016712,2]
[420344163,1776005447526,-4853.12,0.00016712,2]
[420344165,1776005447536,-500.0,0.00016712,2]
[420344167,1776005447545,-500.0,0.00016712,2]
[420344169,1776005447560,-500.0,0.00016712,2]
[420344171,1776005447572,-500.0,0.00016712,2]
[420344173,1776005447581,-500.0,0.00016712,2]
[420344175,1776005447590,-686.57,0.00016712,2]
[420344177,1776005447615,-500.0,0.00016712,2]
[420344179,1776005447625,-11063.88,0.00016712,2]
[420344181,1776005447635,-500.0,0.00016712,2]
[420344183,1776005447663,-500.0,0.00016712,2]
[420344185,1776005447674,-500.0,0.00016712,2]
[420344187,1776005447693,-268.61184875,0.00016712,2]
[420344189,1776005447711,-2127.83,0.00016712,2]
[420344191,1776005447722,-500.0,0.00016712,2]
[420344193,1776005447740,-500.0,0.00016712,2]
[420344194,1776005447754,-500.0,0.00016712,2]
[420344196,1776005447765,-600.66,0.00016712,2]
[420344199,1776005447782,-5889.93,0.00016712,2]
[420344201,1776005447794,-500.0,0.00016712,2]
[420344202,1776005447803,-430.94909699,0.00016712,2]
[420344205,1776005447817,-500.0,0.00016712,2]
[420344207,1776005447829,-342.89,0.00016712,2]
[420344209,1776005447842,-409.19,0.00016712,2]
[420344210,1776005447853,-198.66,0.00016712,2]
[420344212,1776005447865,-433.77,0.00016712,2]
[420344215,1776005447880,-367.92,0.00016712,2]
[420344217,1776005447896,-500.0,0.00016712,2]
[420344219,1776005447905,-500.0,0.00016712,2]
[420344220,1776005447915,-500.0,0.00016712,2]
[420344221,1776005447934,-500.0,0.00016712,2]
[420344222,1776005447944,-500.0,0.00016712,2]
[420344223,1776005447957,-500.0,0.00016712,2]
[420344224,1776005447970,-500.0,0.00016712,2]
[420344225,1776005447982,-500.0,0.00016712,2]
[420344226,1776005447999,-500.0,0.00016712,2]
[420344227,1776005448010,-500.0,0.00016712,2]
[420344228,1776005448021,-500.0,0.00016712,2]
[420344231,1776005448036,-500.0,0.00016712,2]
[420344233,1776005448047,-500.0,0.00016712,2]
[420344235,1776005448059,-500.0,0.00016712,2]
[420344237,1776005448075,-500.0,0.00016712,2]
[420344239,1776005448096,-500.0,0.00016712,2]
[420344241,1776005448125,-500.0,0.00016712,2]
[420344243,1776005448138,-278.71097745,0.00016712,2]
[420344245,1776005448152,-500.0,0.00016712,2]
[420344247,1776005448177,-500.0,0.00016712,2]
[420344249,1776005448187,-500.0,0.00016712,2]
[420344251,1776005448198,-417.64702283,0.00016712,2]
[420344253,1776005448223,-500.0,0.00016712,2]
[420344255,1776005448233,-500.0,0.00016712,2]
[420344257,1776005448243,-500.0,0.00016712,2]
[420344259,1776005448271,-500.0,0.00016712,2]
[420344261,1776005448281,-500.0,0.00016712,2]
[420344263,1776005448296,-500.0,0.00016712,2]
[420344265,1776005448306,-500.0,0.00016712,2]
[420344267,1776005448315,-500.0,0.00016712,2]
[420344269,1776005448325,-500.0,0.00016712,2]
[420344271,1776005448336,-500.0,0.00016712,2]
[420344273,1776005448346,-500.0,0.00016712,2]
[420344275,1776005448355,-500.0,0.00016712,2]
[420344277,1776005448366,-500.0,0.00016712,2]
[420344279,1776005448377,-500.0,0.00016712,2]
[420344281,1776005448388,-500.0,0.00016712,2]
[420344283,1776005448397,-500.0,0.00016712,2]
[420344285,1776005448408,-500.0,0.00016712,2]
[420344288,1776005448421,-500.0,0.00016712,2]
[420344290,1776005448432,-500.0,0.00016712,2]
[420344292,1776005448442,-500.0,0.00016712,2]
[420344294,1776005448459,-500.0,0.00016712,2]
[420344296,1776005448470,-500.0,0.00016712,2]
[420344298,1776005448484,-1257.0065,0.00016712,2]
[420344300,1776005448495,-500.0,0.00016712,2]
[420344302,1776005448509,-500.0,0.00016712,2]
[420344304,1776005448519,-500.0,0.00016712,2]
[420344306,1776005448532,-500.0,0.00016712,2]
[420344308,1776005448554,-500.0,0.00016712,2]
[420344310,1776005448563,-500.0,0.00016712,2]
[420344312,1776005448573,-500.0,0.00016712,2]
[420344314,1776005448585,-500.0,0.00016712,2]
[420344316,1776005448616,-500.0,0.00016712,2]
[420344318,1776005448627,-500.0,0.00016712,2]
[420344320,1776005448637,-500.0,0.00016712,2]
[420344323,1776005448659,-500.0,0.00016712,2]
[420344338,1776005448846,-500.0,0.00016712,2]
[420344340,1776005448861,-500.0,0.00016712,2]
[420344342,1776005448875,-500.0,0.00016712,2]
[420344344,1776005448892,-500.0,0.00016712,2]
[420344346,1776005448906,-500.0,0.00016712,2]
[420344348,1776005448916,-500.0,0.00016712,2]
[420344350,1776005448927,-500.0,0.00016712,2]
[420344352,1776005448939,-500.0,0.00016712,2]
[420344354,1776005448981,-500.0,0.00016712,2]
[420344356,1776005448991,-500.0,0.00016712,2]
[420344358,1776005449027,-500.0,0.00016712,2]
[420344360,1776005449039,-500.0,0.00016712,2]
[420344363,1776005449068,-500.0,0.00016712,2]
[420344365,1776005449078,-500.0,0.00016712,2]
[420344367,1776005449105,-500.0,0.00016712,2]
[420344369,1776005449118,-500.0,0.00016712,2]
[420344371,1776005449132,-500.0,0.00016712,2]
[420344373,1776005449151,-500.0,0.00016712,2]
[420344375,1776005449163,-500.0,0.00016712,2]
[420344377,1776005449176,-500.0,0.00016712,2]
[420344379,1776005449186,-500.0,0.00016712,2]
[420344381,1776005449213,-500.0,0.00016712,2]
[420344383,1776005449227,-500.0,0.00016712,2]
[420344386,1776005449239,-500.0,0.00016712,2]
[420344387,1776005449250,-500.0,0.00016712,2]
[420344390,1776005449264,-500.0,0.00016712,2]
[420344392,1776005449276,-194.64324507,0.00016712,2]
[420344394,1776005449287,-500.0,0.00016712,2]
[420344396,1776005449296,-1161.4384,0.00016712,2]
[420344398,1776005449310,-500.0,0.00016712,2]
[420344400,1776005449329,-123.83522357,0.00016712,2]
[420344417,1776005449584,-376.16477643,0.00016712,2]
[420344420,1776005449595,-500.0,0.00016712,2]
[420344421,1776005449625,-500.0,0.00016712,2]
[420344424,1776005449640,-500.0,0.00016712,2]
[420344426,1776005449684,-280.62522357,0.00016712,2]
[420344483,1776005450588,-219.37477643,0.00016712,2]
[420344485,1776005450598,-500.0,0.00016712,2]
[420344487,1776005450617,-500.0,0.00016712,2]
[420344489,1776005450626,-500.0,0.00016712,2]
[420344491,1776005450636,-500.0,0.00016712,2]
[420344493,1776005450648,-500.0,0.00016712,2]
[420344495,1776005450673,-455.39,0.00016712,2]
[420344497,1776005450689,-500.0,0.00016712,2]
[420344499,1776005450700,-500.0,0.00016712,2]
[420344501,1776005450710,-305.85,0.00016712,2]
[420344502,1776005450730,-500.0,0.00016712,2]
[420344504,1776005450740,-500.0,0.00016712,2]
[420344507,1776005450750,-500.0,0.00016712,2]
[420344509,1776005450765,-500.0,0.00016712,2]
[420344511,1776005450775,-500.0,0.00016712,2]
[420344513,1776005450785,-500.0,0.00016712,2]
[420344515,1776005450795,-500.0,0.00016712,2]
[420344517,1776005450812,-253.17,0.00016712,2]
[420344519,1776005450822,-500.0,0.00016712,2]
[420344521,1776005450833,-500.0,0.00016712,2]
[420344523,1776005450843,-432.17,0.00016712,2]
[420344525,1776005450854,-500.0,0.00016712,2]
[420344527,1776005450863,-500.0,0.00016712,2]
[420344528,1776005450874,-500.0,0.00016712,2]
[420344530,1776005450883,-500.0,0.00016712,2]
[420344532,1776005450893,-500.0,0.00016712,2]
[420344535,1776005450906,-940.9353,0.00016712,2]
[420344537,1776005450918,-478.8,0.00016712,2]
[420344539,1776005450927,-500.0,0.00016712,2]
[420344541,1776005450940,-500.0,0.00016712,2]
[420344543,1776005450951,-500.0,0.00016712,2]
[420344545,1776005450971,-500.0,0.00016712,2]
[420344547,1776005450981,-315.98248732,0.00016712,2]
[420344549,1776005450991,-500.0,0.00016712,2]
[420344551,1776005451008,-500.0,0.00016712,2]
[420344553,1776005451021,-500.0,0.00016712,2]
[420344555,1776005451031,-500.0,0.00016712,2]
[420344557,1776005451042,-499.76239455,0.00016712,2]
[420344559,1776005451075,-500.0,0.00016712,2]
[420344561,1776005451098,-868.7224,0.00016712,2]
[420344563,1776005451111,-545.2,0.00016712,2]
[420344565,1776005451120,-500.0,0.00016712,2]
[420344567,1776005451130,-500.0,0.00016712,2]
[420344569,1776005451148,-500.0,0.00016712,2]
[420344571,1776005451157,-500.0,0.00016712,2]
[420344573,1776005451167,-500.0,0.00016712,2]
[420344575,1776005451193,-500.0,0.00016712,2]
[420344577,1776005451202,-500.0,0.00016712,2]
[420344579,1776005451214,-500.0,0.00016712,2]
[420344581,1776005451230,-256.47102852,0.00016712,2]
[420344582,1776005451248,-500.0,0.00016712,2]
[420344585,1776005451259,-500.0,0.00016712,2]
[420344587,1776005451278,-500.0,0.00016712,2]
[420344589,1776005451289,-500.0,0.00016712,2]
[420344591,1776005451298,-500.0,0.00016712,2]
[420344593,1776005451312,-500.0,0.00016712,2]
[420344604,1776005451468,-500.0,0.00016712,2]
[420344606,1776005451483,-500.0,0.00016712,2]
[420344608,1776005451517,-500.0,0.00016712,2]
[420344609,1776005451534,-99.77161318,0.00016712,2]
[420344631,1776005451885,-224.74083523,0.00016438,2]
[420344633,1776005451993,-396.17792366,0.00016438,2]
[420344657,1776005452443,-512.85274111,0.00016438,2]
[420344659,1776005452454,-400.22838682,0.00016712,2]
[420344661,1776005452474,-500.0,0.00016712,2]
[420344663,1776005452497,-500.0,0.00016712,2]
[420344665,1776005452506,-500.0,0.00016712,2]
[420344667,1776005452519,-500.0,0.00016712,2]
[420344668,1776005452534,-500.0,0.00016712,2]
[420344670,1776005452546,-500.0,0.00016712,2]
[420344672,1776005452559,-500.0,0.00016712,2]
[420344675,1776005452569,-500.0,0.00016712,2]
[420344677,1776005452582,-500.0,0.00016712,2]
[420344679,1776005452593,-500.0,0.00016712,2]
[420344681,1776005452616,-500.0,0.00016712,2]
[420344683,1776005452627,-500.0,0.00016712,2]
[420344684,1776005452638,-500.0,0.00016712,2]
[420344687,1776005452658,-500.0,0.00016712,2]
[420344688,1776005452669,-230.00932552,0.00016712,2]
[420344691,1776005452683,-500.0,0.00016712,2]
[420344692,1776005452707,-500.0,0.00016712,2]
[420344695,1776005452718,-356.41529425,0.00016712,2]
[420344697,1776005452730,-143.58470575,0.00016712,2]
[420344699,1776005452749,-500.0,0.00016712,2]
[420344701,1776005452758,-562.73086148,0.00016712,2]
[420344703,1776005452769,-500.0,0.00016712,2]
[420344705,1776005452779,-500.0,0.00016712,2]
[420344707,1776005452795,-500.0,0.00016712,2]
[420344708,1776005452805,-260.05774941,0.00016712,2]
[420344711,1776005452823,-239.94225059,0.00016712,2]
[420344713,1776005452835,-500.0,0.00016712,2]
[420344715,1776005452845,-16.91244057,0.00016712,2]
[420344717,1776005452859,-483.08755943,0.00016712,2]
[420344719,1776005452877,-500.0,0.00016712,2]
[420344721,1776005452887,-500.0,0.00016712,2]
[420344723,1776005452897,-500.0,0.00016712,2]
[420344725,1776005452910,-500.0,0.00016712,2]
[420344727,1776005452922,-500.0,0.00016712,2]
[420344729,1776005452931,-500.0,0.00016712,2]
[420344731,1776005452947,-500.0,0.00016712,2]
[420344733,1776005452960,-500.0,0.00016712,2]
[420344735,1776005452971,-500.0,0.00016712,2]
[420344737,1776005452989,-810.34,0.00016712,2]
[420344739,1776005453000,-500.0,0.00016712,2]
[420344742,1776005453013,-500.0,0.00016712,2]
[420344744,1776005453030,-500.0,0.00016712,2]
[420344746,1776005453045,-1727.1295,0.00016712,2]
[420344748,1776005453058,-500.0,0.00016712,2]
[420344750,1776005453074,-430.35,0.00016712,2]
[420344752,1776005453089,-500.0,0.00016712,2]
[420344754,1776005453100,-239.23,0.00016712,2]
[420344756,1776005453126,-500.0,0.00016712,2]
[420344758,1776005453152,-500.0,0.00016712,2]
[420344760,1776005453167,-160.88,0.00016712,2]
[420344761,1776005453188,-500.0,0.00016712,2]
[420344764,1776005453200,-500.0,0.00016712,2]
[420344765,1776005453212,-500.0,0.00016712,2]
[420344767,1776005453243,-500.0,0.00016712,2]
[420344769,1776005453254,-500.0,0.00016712,2]
[420344771,1776005453284,-500.0,0.00016712,2]
[420344774,1776005453323,-500.0,0.00016712,2]
[420344776,1776005453350,-500.0,0.00016712,2]
[420344777,1776005453390,-500.0,0.00016712,2]
[420344779,1776005453418,-151.0,0.00016712,2]
[420344781,1776005453462,-500.0,0.00016712,2]
[420344783,1776005453496,-151.0,0.00016712,2]
[420344785,1776005453507,-500.0,0.00016712,2]
[420344788,1776005453519,-500.0,0.00016712,2]
[420344790,1776005453549,-500.0,0.00016712,2]
[420344792,1776005453561,-1000.0,0.00016712,2]
[420344794,1776005453571,-500.0,0.00016712,2]
[420344795,1776005453586,-500.0,0.00016712,2]
[420344797,1776005453596,-151.417098,0.00016712,2]
[420344799,1776005453606,-2011.155722,0.00016712,2]
[420344802,1776005453627,-1000.0,0.00016712,2]
[420344804,1776005453640,-500.0,0.00016712,2]
[420344805,1776005453650,-500.0,0.00016712,2]
[420344808,1776005453676,-155.0,0.00016736,2]
[420344810,1776005453686,-635.5873575,0.00016762,2]
[420344811,1776005453704,-154.82481459,0.00016773,2]
[420344814,1776005453721,-531.13424489,0.00016773,2]
[420344816,1776005453731,-500.0,0.00016773,2]
[420344817,1776005453753,-500.0,0.00016773,2]
[420344819,1776005453766,-500.0,0.00016773,2]
[420344822,1776005453780,-271.64775814,0.00016773,2]
[420344823,1776005453803,-501.25981471,0.00016773,2]
[420344825,1776005453832,-500.0,0.00016773,2]
[420344827,1776005453843,-3839.22251136,0.000168,2]
[420344830,1776005453856,-151.0,0.000168,2]
[420344831,1776005453871,-2487.15318209,0.00016824,2]
[420344834,1776005453881,-155.0,0.00016885,2]
[420344836,1776005453892,-445.12893096,0.000169,2]
[420344838,1776005453906,-258.0,0.00016908,2]
[420344840,1776005453917,-358.77245563,0.00016969,2]
[420344842,1776005453927,-390.11394715,0.00016969,2]
[420344843,1776005453938,-500.0,0.00016973,2]
[420344846,1776005453950,-169.31329629,0.00016973,2]
[420344847,1776005453959,-553.79914352,0.00016973,2]
[420344849,1776005453969,-502.62934024,0.00016973,2]
[420344851,1776005453980,-500.0,0.00016973,2]
[420344853,1776005453990,-628.68315748,0.00016973,2]
[420344856,1776005454005,-502.92535571,0.00016973,2]
[420344858,1776005454017,-500.0,0.00016973,2]
[420344860,1776005454031,-500.0,0.00016973,2]
[420344862,1776005454042,-500.0,0.00016973,2]
[420344864,1776005454052,-500.0,0.00016973,2]
[420344866,1776005454066,-500.0,0.00016973,2]
[420344868,1776005454075,-500.0,0.00016973,2]
[420344870,1776005454085,-500.0,0.00016973,2]
[420344872,1776005454106,-500.0,0.00016973,2]
[420344874,1776005454117,-531.09784935,0.00016973,2]
[420344876,1776005454127,-500.0,0.00016973,2]
[420344878,1776005454142,-500.13930519,0.00016973,2]
[420344880,1776005454155,-500.0,0.00016973,2]
[420344882,1776005454165,-500.0,0.00016973,2]
[420344884,1776005454181,-500.0,0.00016973,2]
[420344886,1776005454193,-160.85122346,0.00016973,2]
[420344888,1776005454203,-502.53960999,0.00016973,2]
[420344890,1776005454213,-500.0,0.00016973,2]
[420344892,1776005454224,-163.63320169,0.00016973,2]
[420344894,1776005454234,-166.85281677,0.00016973,2]
[420344895,1776005454244,-536.85540735,0.00016973,2]
[420344897,1776005454254,-500.82983759,0.00016973,2]
[420344899,1776005454265,-505.650827,0.00016973,2]
[420344901,1776005454284,-847.4063,0.00016986,2]
[420344904,1776005454298,-500.0,0.00016986,2]
[420344905,1776005454309,-500.0,0.00016986,2]
[420344907,1776005454319,-500.0,0.00016986,2]
[420344909,1776005454330,-500.0,0.00016986,2]
[420344911,1776005454343,-500.0,0.00016986,2]
[420344913,1776005454356,-500.0,0.00016986,2]
[420344915,1776005454372,-324.67590929,0.00016986,2]
[420344917,1776005454382,-500.0,0.00016986,2]
[420344919,1776005454395,-500.0,0.00016986,2]
[420344921,1776005454460,-659.32,0.00016986,2]
[420344923,1776005454525,-844.8,0.00016986,2]
[420344925,1776005454534,-279.10540335,0.00016986,2]
[420344927,1776005454551,-581.29,0.00016986,2]
[420344929,1776005454562,-500.0,0.00016986,2]
[420344931,1776005454571,-636.52033537,0.00016986,2]
[420344933,1776005454581,-500.0,0.00016986,2]
[420344935,1776005454598,-500.0,0.00016986,2]
[420344937,1776005454608,-500.0,0.00016986,2]
[420344939,1776005454618,-500.0,0.00016986,2]
[420344941,1776005454628,-500.0,0.00016986,2]
[420344942,1776005454641,-500.0,0.00016986,2]
[420344943,1776005454657,-500.0,0.00016986,2]
[420344944,1776005454667,-167.49990313,0.00016986,2]
[420344945,1776005454680,-332.50009687,0.00016986,2]
[420344946,1776005454691,-500.0,0.00016986,2]
[420344947,1776005454701,-500.0,0.00016986,2]
[420344948,1776005454716,-1138.86,0.00016986,2]
[420344949,1776005454725,-365.42579811,0.00016986,2]
[420346384,1776006002438,161.34,2e-05,2]
[420346385,1776006023875,-1387.9627021,2.376e-05,2]
[420346426,1776006632560,-1221.0,2.214e-05,2]
[420346428,1776006632571,-1353.47284425,2.214e-05,2]
[420346431,1776006632583,-2425.52715575,2.214e-05,2]
[420346433,1776006632593,-1200.0,2.235e-05,2]
[420346435,1776006632602,-5000.0,2.236e-05,2]
[420346437,1776006632612,-300.0,2.323e-05,2]
[420346438,1776006632621,-161.34,2.9e-05,2]
[420346440,1776006632630,-161.34,3.3e-05,2]
[420346442,1776006632639,-161.34,3.7e-05,2]
[420346444,1776006632648,-161.34,4.1e-05,2]
[420346446,1776006632657,-177.0,4.316e-05,2]
[420346448,1776006632666,-161.34,4.6e-05,2]
[420346450,1776006632675,-161.34,5e-05,2]
[420346452,1776006632685,-834.43284425,5e-05,2]
[420346454,1776006632697,-253.08869634,5e-05,2]
[420346464,1776006632778,-272.80475995,5e-05,2]
[420346466,1776006632791,-177.451468,5.951e-05,2]
[420346468,1776006632801,-115.75880292,6.085e-05,2]
[420346514,1776006638653,-833.406,6.024e-05,2]
[420346515,1776006638712,-2443.83798997,6.024e-05,2]
[420346516,1776006638756,-1428.24,6.024e-05,2]
[420346517,1776006638788,-294.51601003,6.024e-05,2]
[420346518,1776006638798,-2581.2834411,6.085e-05,2]
[420346519,1776006638813,-204.0,6.316e-05,2]
[420346520,1776006638831,-177.451468,6.577e-05,2]
[420346521,1776006638841,-2966.53504423,7.171e-05,2]
[420346522,1776006638853,-151.504221,7.204e-05,2]
[420346523,1776006638871,-25.947247,7.204e-05,2]
[420346524,1776006638883,-3180.80382812,8.256e-05,2]
[420346525,1776006638894,-231.0,8.316e-05,2]
[420346526,1776006638912,-3395.07261213,9.341e-05,2]
[420346527,1776006638931,-2412.24173026,9.8e-05,2]
[420346528,1776006638949,-2412.24173026,9.801e-05,2]
[420346529,1776006638968,-2412.24173026,9.89e-05,2]
[420346530,1776006638978,-2412.24173026,9.9e-05,2]
[420346531,1776006638993,-492.42530192,0.0001,2]
[420346532,1776006639011,-2412.24173026,0.0001,2]
[420346533,1776006639022,-151.0,0.0001,2]
[420346534,1776006639054,-151.0,0.0001,2]
[420346535,1776006639070,-151.0,0.0001,2]
[420346536,1776006639103,-151.0,0.0001,2]
[420346537,1776006639143,-151.0,0.0001,2]
[420346538,1776006639163,-253.26711463,0.0001,2]
[420346539,1776006639195,-151.0,0.0001,2]
[420346540,1776006639207,-151.0,0.0001,2]
[420346541,1776006639235,-151.0,0.0001,2]
[420346542,1776006639246,-151.0,0.0001,2]
[420346543,1776006639271,-151.0,0.0001,2]
[420346544,1776006639281,-151.0,0.0001,2]
[420346545,1776006639298,-151.0,0.0001,2]
[420346546,1776006639319,-151.0,0.0001,2]
[420346547,1776006639329,-151.0,0.0001,2]
[420346548,1776006639361,-151.0,0.0001,2]
[420346549,1776006639372,-151.0,0.0001,2]